bitfinex-derivatives/quotes_BTCF0:USTF0_20250805
["timestamp","ask_amount","ask_price","bid_price","bid_amount"]
[1754408422173,0.3852247,112890.0,112880.0,0.1772278]
[1754408422373,0.7460247,112890.0,112880.0,0.8215478]
[1754408422568,0.7460247,112890.0,112880.0,0.83958173]
[1754408423069,0.7460247,112890.0,112880.0,0.19526173]
[1754408423269,0.7460247,112890.0,112880.0,0.66235393]
[1754408423771,0.7460247,112890.0,112880.0,0.66535393]
[1754408424073,0.7470247,112890.0,112880.0,0.66735393]
[1754408424273,0.7470247,112890.0,112880.0,0.64932]
[1754408424469,0.7470247,112890.0,112880.0,0.8245204]
[1754408424780,0.7470247,112890.0,112880.0,0.8235204]
[1754408425773,0.7470247,112890.0,112880.0,0.8235205]
[1754408426260,0.7470247,112890.0,112880.0,0.64632]
[1754408426467,1.30362619,112890.0,112880.0,0.64532]
[1754408426666,1.30462619,112890.0,112880.0,0.64528]
[1754408427473,1.66542619,112890.0,112880.0,0.64528]
[1754408428470,1.66542619,112890.0,112880.0,0.8224804]
[1754408428771,1.1088247,112890.0,112880.0,0.8224804]
[1754408430568,1.1078247,112890.0,112880.0,0.8224804]
[1754408430765,0.93064,112890.0,112880.0,0.8214804]
[1754408430970,1.05952,112890.0,112880.0,0.8224804]
[1754408431171,1.2367047,112890.0,112880.0,0.8224804]
[1754408431570,1.2337047,112890.0,112880.0,0.8214804]
[1754408431870,1.79530619,112890.0,112880.0,0.8224804]
[1754408432068,1.2387047,112890.0,112880.0,0.8224804]
[1754408433273,1.2367047,112890.0,112880.0,0.8224804]
[1754408434376,1.2377047,112890.0,112880.0,0.8224804]
[1754408434575,0.8769047,112890.0,112880.0,0.8224804]
[1754408434776,0.24956,112890.0,112880.0,1.37908189]
[1754408435077,0.5161047,112890.0,112880.0,0.8224804]
[1754408435873,0.8739047,112890.0,112880.0,0.8244804]
[1754408436375,0.8729047,112890.0,112880.0,0.8244804]
[1754408436975,0.5121047,112890.0,112880.0,0.8244804]
[1754408437271,0.15995,112890.0,112880.0,0.8244804]
[1754408437473,0.15995,112890.0,112880.0,0.8254804]
[1754408437775,0.15995,112890.0,112880.0,1.74288189]
[1754408438170,0.12688,112890.0,112880.0,1.74288189]
[1754408438575,0.12688,112890.0,112880.0,2.22004989]
[1754408439481,0.15995,112890.0,112880.0,2.22004989]
[1754408439869,0.03407,112890.0,112880.0,2.21988989]
[1754408440569,0.20904,112890.0,112880.0,0.8253204]
[1754408440968,0.3862247,112890.0,112880.0,0.8253204]
[1754408443076,0.3862247,112890.0,112880.0,0.1812404]
[1754408443279,0.7470247,112890.0,112880.0,0.1812404]
[1754408443579,0.7470247,112890.0,112880.0,0.648]
[1754408444576,0.7470247,112890.0,112880.0,0.647]
[1754408444978,0.7470247,112890.0,112880.0,0.00304]
[1754408445279,0.7470247,112890.0,112880.0,0.64696]
[1754408445877,0.7460247,112890.0,112880.0,0.8211604]
[1754408446178,0.7470247,112890.0,112880.0,0.8221604]
[1754408448784,0.11968,112890.0,112880.0,1.29710815]
[1754408448984,0.17455,112890.0,112880.0,1.29710815]
[1754408449177,0.20904,112890.0,112880.0,1.29710815]
[1754408449575,0.03407,112890.0,112880.0,1.65790815]
[1754408449884,0.001,112890.0,112880.0,2.1328559]
[1754408450181,0.001,112890.0,112880.0,1.65790815]
[1754408450570,0.03407,112890.0,112880.0,1.65790815]
[1754408450770,0.03407,112890.0,112880.0,1.73943995]
[1754408450973,0.001,112890.0,112880.0,1.73943995]
[1754408452579,0.03578,112890.0,112880.0,1.73943995]
[1754408453180,0.03578,112890.0,112880.0,1.37863995]
[1754408453680,0.12584,112890.0,112880.0,0.8221604]
[1754408454085,0.208,112890.0,112880.0,0.8221604]
[1754408454884,0.17418,112890.0,112880.0,0.8221604]
[1754408455277,0.13802,112890.0,112880.0,1.1829604]
[1754408455484,0.03578,112890.0,112880.0,1.73943995]
[1754408455680,0.03578,112890.0,112880.0,1.73919995]
[1754408456080,0.03578,112890.0,112880.0,1.37839995]
[1754408456286,0.03578,112890.0,112880.0,0.8219204]
[1754408456487,0.03578,112890.0,112880.0,1.37839995]
[1754408456687,0.39658,112890.0,112880.0,0.1782404]
[1754408456888,0.39658,112890.0,112880.0,0.8219204]
[1754408457088,0.7459847,112890.0,112880.0,0.8219204]
[1754408457286,0.7459847,112890.0,112880.0,0.64472]
[1754408458689,0.7459847,112890.0,112880.0,0.64468]
[1754408460187,1.30246425,112890.0,112880.0,0.64468]
[1754408460690,0.7459847,112890.0,112880.0,0.64468]
[1754408461193,0.7459847,112890.0,112880.0,0.00104]
[1754408461492,1.30246425,112890.0,112880.0,0.6446]
[1754408461688,0.7459847,112890.0,112880.0,0.00104]
[1754408461988,0.7459847,112890.0,112880.0,0.6446]
[1754408462798,1.30246425,112890.0,112880.0,0.6446]
[1754408463095,1.30246425,112890.0,112880.0,0.00104]
[1754408463300,1.30246425,112890.0,112880.0,0.64456]
[1754408463694,1.30246425,112890.0,112880.0,0.00104]
[1754408463994,0.3842162,112870.0,112860.0,4e-05]
[1754408464198,0.3842319,112860.0,112850.0,0.64352]
[1754408464493,1.30151145,112860.0,112850.0,0.64352]
[1754408464802,0.294219,112830.0,112820.0,1.56099952]
[1754408464992,0.745079,112830.0,112820.0,2.21322692]
[1754408465494,0.745079,112830.0,112820.0,2.28491785]
[1754408466194,0.745079,112830.0,112820.0,2.28591785]
[1754408467400,0.746079,112830.0,112820.0,2.28991785]
[1754408468100,0.746079,112830.0,112820.0,2.13139963]
[1754408468993,0.746079,112830.0,112820.0,1.48791963]
[1754408469195,0.746079,112830.0,112820.0,2.13147963]
[1754408470198,0.746079,112830.0,112820.0,1.95419833]
[1754408470397,0.746079,112830.0,112820.0,2.13149303]
[1754408470799,0.746079,112830.0,112820.0,1.95419833]
[1754408471001,0.746079,112830.0,112820.0,2.13149303]
[1754408472696,0.573859,112830.0,112820.0,2.13149303]
[1754408472895,0.39658,112830.0,112820.0,2.13149303]
[1754408473405,0.5738589,112830.0,112820.0,2.13149303]
[1754408473701,0.5738589,112830.0,112820.0,1.95419833]
[1754408474092,0.7460789,112830.0,112820.0,0.72899833]
[1754408474806,1.30255845,112830.0,112820.0,0.64856]
[1754408476000,1.30255845,112830.0,112820.0,0.64844]
[1754408476194,1.30255845,112830.0,112820.0,0.64744]
[1754408476409,1.77982245,112830.0,112820.0,0.64744]
[1754408476599,1.77882245,112830.0,112820.0,0.64344]
[1754408476800,1.77982245,112830.0,112820.0,0.64644]
[1754408477306,1.77882245,112830.0,112820.0,0.64344]
[1754408477508,1.78282245,112830.0,112820.0,0.64444]
[1754408478105,1.78382245,112830.0,112820.0,0.64444]
[1754408478402,1.78382245,112830.0,112820.0,0.73477425]
[1754408478403,0.005,112830.0,112820.0,0.73477425]
[1754408478702,0.005,112830.0,112820.0,1.37817425]
[1754408479009,0.002,112830.0,112820.0,0.8216947]
[1754408479198,0.39958,112830.0,112820.0,0.8216947]
[1754408479404,0.666919,112830.0,112820.0,0.8216947]
[1754408479695,0.44834,112830.0,112820.0,0.8216947]
[1754408480303,0.08754,112830.0,112820.0,0.8216947]
[1754408480504,0.44834,112830.0,112820.0,0.8216947]
[1754408480906,0.681859,112830.0,112820.0,0.98021292]
[1754408481102,0.44834,112830.0,112820.0,0.98021292]
[1754408481602,0.625619,112830.0,112820.0,0.98021292]
[1754408481801,0.576859,112830.0,112820.0,0.98021292]
[1754408482003,0.748459,112830.0,112820.0,0.80291822]
[1754408482403,0.748459,112830.0,112820.0,0.8216947]
[1754408482606,0.57118,112830.0,112820.0,0.8216947]
[1754408482908,0.39958,112830.0,112820.0,0.8216947]
[1754408483109,0.39958,112830.0,112820.0,0.8215747]
[1754408483411,0.39958,112830.0,112820.0,0.98009292]
[1754408483605,0.004,112830.0,112820.0,1.89737247]
[1754408483799,0.004,112830.0,112820.0,2.16217247]
[1754408484305,0.004,112830.0,112820.0,2.48091825]
[1754408485008,0.004,112830.0,112820.0,2.63993581]
[1754408485598,0.002,112830.0,112820.0,2.63993581]
[1754408485800,0.002,112830.0,112820.0,2.10283181]
[1754408486205,0.11239,112840.0,112830.0,0.177279]
[1754408486509,0.08068,112840.0,112830.0,2.32039855]
[1754408486805,0.08068,112840.0,112830.0,2.62039855]
[1754408487106,0.0707081,112850.0,112840.0,0.1772633]
[1754408487309,0.0707081,112850.0,112840.0,1.73774285]
[1754408487602,0.0707081,112850.0,112840.0,2.47977485]
[1754408487807,0.3608,112860.0,112850.0,0.1772476]
[1754408488009,0.39251,112860.0,112850.0,1.15762726]
[1754408488209,0.39251,112860.0,112850.0,0.4420476]
[1754408488405,0.6589418,112860.0,112850.0,1.0851676]
[1754408488606,0.6589418,112860.0,112850.0,1.09385973]
[1754408488807,0.6609418,112860.0,112850.0,1.09885973]
[1754408489007,0.6609418,112860.0,112850.0,0.45573973]
[1754408489206,0.48371,112860.0,112850.0,0.45573973]
[1754408489408,0.6609419,112860.0,112850.0,1.09885973]
[1754408489607,0.6609419,112860.0,112850.0,0.45573973]
[1754408489906,0.48371,112860.0,112850.0,1.09885973]
[1754408490104,0.12291,112860.0,112850.0,1.09885973]
[1754408490306,0.48371,112860.0,112850.0,0.45573973]
[1754408490501,0.48371,112860.0,112850.0,1.09885973]
[1754408490713,0.48271,112860.0,112850.0,1.09885973]
[1754408491010,0.44915,112860.0,112850.0,1.10085973]
[1754408491414,0.39351,112860.0,112850.0,1.10085973]
[1754408491610,0.03271,112860.0,112850.0,1.09985973]
[1754408491810,0.44915,112860.0,112850.0,1.09985973]
[1754408492409,0.39351,112860.0,112850.0,1.09985973]
[1754408493813,0.48271,112860.0,112850.0,1.09985973]
[1754408494014,0.6599419,112860.0,112850.0,0.45673973]
[1754408494217,0.6599419,112860.0,112850.0,1.09977973]
[1754408494613,0.7423919,112860.0,112850.0,1.09977973]
[1754408494811,0.7423919,112860.0,112850.0,0.45673973]
[1754408495016,0.7423919,112860.0,112850.0,1.09973973]
[1754408495408,0.56516,112860.0,112850.0,1.09973973]
[1754408496117,0.39351,112860.0,112850.0,1.09973973]
[1754408496418,0.43956,112860.0,112850.0,1.09973973]
[1754408496714,0.39351,112860.0,112850.0,1.09973973]
[1754408497311,0.44915,112860.0,112850.0,1.09973973]
[1754408497816,0.7423919,112860.0,112850.0,1.09973973]
[1754408498016,0.56516,112860.0,112850.0,1.09973973]
[1754408499415,0.56516,112860.0,112850.0,0.83493973]
[1754408499622,0.7423919,112860.0,112850.0,0.83493973]
[1754408500120,0.7423919,112860.0,112850.0,0.83489973]
[1754408500311,0.56516,112860.0,112850.0,0.83489973]
[1754408500518,0.7423919,112860.0,112850.0,0.19193973]
[1754408500820,0.7423919,112860.0,112850.0,0.83485973]
[1754408501618,1.29887145,112860.0,112850.0,0.006]
[1754408501917,1.29887145,112860.0,112850.0,0.64888]
[1754408502308,1.59887145,112860.0,112850.0,0.64888]
[1754408503413,1.0423919,112860.0,112850.0,0.8261276]
[1754408503619,1.29887145,112860.0,112850.0,0.8261276]
[1754408504722,1.29887145,112860.0,112850.0,0.1832476]
[1754408504924,1.29887145,112860.0,112850.0,0.8261276]
[1754408505521,0.6531918,112860.0,112850.0,0.8261276]
[1754408505721,0.47596,112860.0,112850.0,0.8261276]
[1754408506119,0.5316,112860.0,112850.0,0.8261276]
[1754408506321,0.56516,112860.0,112850.0,0.8261276]
[1754408507722,0.39351,112860.0,112850.0,0.8261276]
[1754408508424,0.44915,112860.0,112850.0,0.8261276]
[1754408508624,0.39351,112860.0,112850.0,0.8261276]
[1754408509019,0.52876,112860.0,112850.0,0.8261276]
[1754408509321,0.56616,112860.0,112850.0,0.8261276]
[1754408509525,0.7433918,112860.0,112850.0,0.8261276]
[1754408509924,0.7423918,112860.0,112850.0,0.006]
[1754408510122,0.7423918,112860.0,112850.0,0.64684]
[1754408510321,0.7423918,112860.0,112850.0,0.005]
[1754408510521,1.29887135,112860.0,112850.0,0.6478]
[1754408511524,0.7423918,112860.0,112850.0,0.6478]
[1754408512128,0.7423918,112860.0,112850.0,0.8220476]
[1754408512428,0.7433918,112860.0,112850.0,0.8210476]
[1754408513724,0.7433918,112860.0,112850.0,0.6438]
[1754408513925,0.7433918,112860.0,112850.0,0.64376]
[1754408514129,0.7433918,112860.0,112850.0,0.8210076]
[1754408514929,0.7433918,112860.0,112850.0,0.8210075]
[1754408515327,0.7433918,112860.0,112850.0,0.64376]
[1754408515827,1.29987135,112860.0,112850.0,0.64376]
[1754408516033,1.29987135,112860.0,112850.0,0.8210076]
[1754408516527,1.29987135,112860.0,112850.0,0.1782476]
[1754408516722,1.29987135,112860.0,112850.0,0.8209676]
[1754408517233,1.29987135,112860.0,112850.0,0.64372]
[1754408517725,1.29987135,112860.0,112850.0,0.8209675]
[1754408518126,1.29987135,112860.0,112850.0,0.1782475]
[1754408518332,1.29987135,112860.0,112850.0,0.8209675]
[1754408518833,1.29987135,112860.0,112850.0,0.64372]
[1754408519126,1.29987135,112860.0,112850.0,0.8209675]
[1754408519335,1.29987135,112860.0,112850.0,0.64372]
[1754408519632,1.29987135,112860.0,112850.0,0.8208876]
[1754408519937,1.29987135,112860.0,112850.0,0.64364]
[1754408520234,1.29987135,112860.0,112850.0,0.1782476]
[1754408520534,0.47696,112860.0,112850.0,0.8208876]
[1754408520838,0.56544,112860.0,112850.0,0.8208876]
[1754408521629,0.56544,112860.0,112850.0,0.8209276]
[1754408521928,0.20464,112860.0,112850.0,0.8209276]
[1754408522122,0.002,112860.0,112850.0,2.30300715]
[1754408522331,0.002,112860.0,112850.0,2.78973234]
[1754408522529,0.09664,112870.0,112860.0,0.1772319]
[1754408522832,1e-07,112870.0,112860.0,1.16645077]
[1754408523039,1e-07,112870.0,112860.0,1.64365077]
[1754408523236,0.09124,112900.0,112890.0,0.1771848]
[1754408523536,0.09124,112900.0,112890.0,1.37626435]
[1754408524125,0.22068,112900.0,112890.0,1.37626435]
[1754408524330,0.22068,112900.0,112890.0,0.8197848]
[1754408524626,0.63511,112900.0,112890.0,0.8197848]
[1754408524835,0.74862,112900.0,112890.0,0.82864292]
[1754408525036,0.38782,112900.0,112890.0,0.82864292]
[1754408525231,0.33395,112900.0,112890.0,0.82964292]
[1754408525737,0.42243,112900.0,112890.0,0.82964292]
[1754408526237,0.33395,112900.0,112890.0,0.18704292]
[1754408526441,0.78323,112900.0,112890.0,0.82948292]
[1754408527038,0.29299,112900.0,112890.0,0.82948292]
[1754408527238,0.65379,112900.0,112890.0,0.82948292]
[1754408527440,0.56531,112900.0,112890.0,0.82948292]
[1754408527636,0.29299,112900.0,112890.0,0.82948292]
[1754408527837,0.65379,112900.0,112890.0,0.82948292]
[1754408528040,0.29299,112900.0,112890.0,0.82948292]
[1754408528238,0.65379,112900.0,112890.0,0.82948292]
[1754408528438,0.61894,112900.0,112890.0,0.82948292]
[1754408528640,0.65379,112900.0,112890.0,0.82948292]
[1754408529937,0.12585,112900.0,112890.0,0.82948292]
[1754408530547,0.29299,112900.0,112890.0,0.82948292]
[1754408530735,0.29299,112900.0,112890.0,0.82936292]
[1754408531048,0.65379,112900.0,112890.0,0.82936292]
[1754408531838,0.29299,112900.0,112890.0,0.82936292]
[1754408532840,0.12585,112900.0,112890.0,0.82936292]
[1754408534146,0.29299,112900.0,112890.0,0.82936292]
[1754408534339,0.65379,112900.0,112890.0,0.82936292]
[1754408534845,0.830959,112900.0,112890.0,0.18704292]
[1754408535038,0.830959,112900.0,112890.0,0.00985812]
[1754408535039,1.38743855,112900.0,112890.0,0.00985812]
[1754408535242,1.38743855,112900.0,112890.0,0.8203447]
[1754408535435,0.830959,112900.0,112890.0,0.8203447]
[1754408535640,0.65379,112900.0,112890.0,0.8203447]
[1754408535841,0.53047,112900.0,112890.0,0.8203447]
[1754408536044,0.5841,112900.0,112890.0,0.82917921]
[1754408536240,0.65379,112900.0,112890.0,0.82913921]
[1754408537344,0.56531,112900.0,112890.0,0.82913921]
[1754408537544,0.20451,112900.0,112890.0,0.82913921]
[1754408537843,0.25814,112900.0,112890.0,0.82913921]
[1754408538048,0.29299,112900.0,112890.0,0.82913921]
[1754408538551,0.65379,112900.0,112890.0,0.82913921]
[1754408538849,0.65379,112900.0,112890.0,0.82909921]
[1754408539948,0.830959,112900.0,112890.0,0.82909921]
[1754408540940,0.830959,112900.0,112890.0,0.82913921]
[1754408541146,0.65379,112900.0,112890.0,0.82913921]
[1754408541849,0.830959,112900.0,112890.0,0.82913921]
[1754408542646,0.830959,112900.0,112890.0,0.82905921]
[1754408543149,0.830959,112900.0,112890.0,0.65187451]
[1754408543343,0.830959,112900.0,112890.0,0.65183451]
[1754408543652,0.830959,112900.0,112890.0,0.82901921]
[1754408544151,0.65379,112900.0,112890.0,0.82901921]
[1754408544946,0.8309591,112900.0,112890.0,0.82901921]
[1754408545847,0.7424791,112900.0,112890.0,0.82901921]
[1754408546152,0.29305,112900.0,112890.0,0.82901921]
[1754408546348,0.25796,112900.0,112890.0,1.38549876]
[1754408546547,0.29305,112900.0,112890.0,1.38549876]
[1754408546754,0.29305,112900.0,112890.0,1.09381921]
[1754408546952,0.65385,112900.0,112890.0,1.09381921]
[1754408547653,0.29305,112900.0,112890.0,1.09381921]
[1754408549365,0.29305,112900.0,112890.0,0.45185921]
[1754408549671,0.65385,112900.0,112890.0,1.09365921]
[1754408550171,1.38749865,112900.0,112890.0,0.91647451]
[1754408550470,1.38749865,112900.0,112890.0,0.26584]
[1754408550672,1.38749865,112900.0,112890.0,0.90764]
[1754408550971,0.8310191,112900.0,112890.0,0.90764]
[1754408551165,1.38749865,112900.0,112890.0,0.90764]
[1754408552560,1.38749865,112900.0,112890.0,0.64284]
[1754408552761,0.2550105,112880.0,112870.0,1.50860423]
[1754408553074,0.55977,112880.0,112870.0,2.15032423]
[1754408553276,0.55977,112880.0,112870.0,2.15930315]
[1754408553670,0.7369704,112880.0,112870.0,2.15930315]
[1754408553971,0.7369704,112880.0,112870.0,2.16030315]
[1754408554166,0.55977,112880.0,112870.0,2.16030315]
[1754408554367,0.56077,112880.0,112870.0,0.29646315]
[1754408554568,0.47223,112880.0,112870.0,0.29646315]
[1754408554769,0.03362,112880.0,112870.0,0.93818315]
[1754408554974,0.03362,112880.0,112870.0,1.4926627]
[1754408555268,0.52568,112880.0,112870.0,0.29446315]
[1754408555468,0.7379705,112880.0,112870.0,0.93618315]
[1754408555869,0.7379705,112880.0,112870.0,0.02864795]
[1754408556070,0.7379705,112880.0,112870.0,0.84654415]
[1754408556275,0.56077,112880.0,112870.0,0.84654415]
[1754408556775,0.56077,112880.0,112870.0,0.84754415]
[1754408556972,0.03362,112880.0,112870.0,0.84754415]
[1754408557576,0.08707,112880.0,112870.0,0.84954415]
[1754408557763,0.03362,112880.0,112870.0,0.84954415]
[1754408558170,0.03362,112880.0,112870.0,1.21034415]
[1754408558368,0.001,112880.0,112870.0,1.4060237]
[1754408558566,0.001,112880.0,112870.0,2.0316237]
[1754408559576,0.03362,112880.0,112870.0,2.0316237]
[1754408559775,0.03362,112880.0,112870.0,1.7668237]
[1754408560076,0.03362,112880.0,112870.0,1.21034415]
[1754408560272,0.19997,112880.0,112870.0,0.84950415]
[1754408560578,0.56077,112880.0,112870.0,0.84950415]
[1754408560868,0.7379704,112880.0,112870.0,0.83179502]
[1754408561074,0.7379704,112880.0,112870.0,0.65457892]
[1754408561775,0.7379704,112880.0,112870.0,0.83179502]
[1754408563565,0.7379704,112880.0,112870.0,0.65457892]
[1754408564776,0.7379704,112880.0,112870.0,0.01297892]
[1754408564977,0.7379704,112880.0,112870.0,0.65453892]
[1754408565374,0.7379704,112880.0,112870.0,0.83175492]
[1754408565778,0.7379704,112880.0,112870.0,0.65453892]
[1754408566279,0.7379704,112880.0,112870.0,0.83175492]
[1754408566973,0.7379704,112880.0,112870.0,0.65453892]
[1754408567168,1.29344995,112880.0,112870.0,0.64256]
[1754408567373,1.29444995,112880.0,112870.0,0.64356]
[1754408568383,1.29444995,112880.0,112870.0,0.64256]
[1754408568680,0.7379704,112880.0,112870.0,0.64256]
[1754408568880,0.7379704,112880.0,112870.0,0.8197761]
[1754408569080,0.7379704,112880.0,112870.0,0.82881006]
[1754408569485,0.7379704,112880.0,112870.0,0.64256]
[1754408569982,0.7379704,112880.0,112870.0,0.8197761]
[1754408571785,0.7379704,112880.0,112870.0,0.82863772]
[1754408573479,0.7379704,112880.0,112870.0,0.8197761]
[1754408574180,1.29444995,112880.0,112870.0,0.001]
[1754408574381,1.29444995,112880.0,112870.0,0.64232]
[1754408575786,1.29444995,112880.0,112870.0,0.8195362]
[1754408575986,1.29444995,112880.0,112870.0,0.64232]
[1754408576288,1.29444995,112880.0,112870.0,0.8195362]
[1754408576489,1.29444995,112880.0,112870.0,0.8195361]
[1754408576886,1.29444995,112880.0,112870.0,0.64232]
[1754408577181,1.29444995,112880.0,112870.0,0.8195361]
[1754408577785,1.33964995,112880.0,112870.0,0.8195361]
[1754408578490,1.33964995,112880.0,112870.0,0.64232]
[1754408579496,1.33964995,112880.0,112870.0,0.8195362]
[1754408580197,1.33964995,112880.0,112870.0,0.64232]
[1754408580997,1.33964995,112880.0,112870.0,0.8195362]
[1754408581196,1.34064995,112880.0,112870.0,0.8195362]
[1754408581397,1.34264995,112880.0,112870.0,0.64232]
[1754408581592,1.81983395,112880.0,112870.0,0.001]
[1754408581801,1.81883395,112880.0,112870.0,0.64216]
[1754408581996,1.82083395,112880.0,112870.0,0.64216]
[1754408582703,2.21495688,112880.0,112870.0,0.64216]
[1754408583199,2.21495688,112880.0,112870.0,0.60868]
[1754408583604,0.3714262,112870.0,112860.0,0.07193932]
[1754408583899,1.20752744,112870.0,112860.0,0.8183519]
[1754408584797,1.28922793,112870.0,112860.0,0.8183519]
[1754408585003,1.29022793,112870.0,112860.0,0.8213519]
[1754408585699,0.7332262,112870.0,112860.0,0.8436419]
[1754408585900,0.7332262,112870.0,112860.0,0.8700919]
[1754408586093,0.7332262,112870.0,112860.0,0.8436419]
[1754408586295,1.29022793,112870.0,112860.0,0.8436419]
[1754408587700,1.29022793,112870.0,112860.0,0.91470196]
[1754408588096,1.29022793,112870.0,112860.0,0.07406006]
[1754408588294,1.29022793,112870.0,112860.0,0.71510006]
[1754408588495,1.29022793,112870.0,112860.0,0.89233186]
[1754408588997,1.29022793,112870.0,112860.0,0.71510006]
[1754408590103,1.29222793,112870.0,112860.0,0.71310006]
[1754408590396,1.29422793,112870.0,112860.0,0.71310006]
[1754408590799,1.29422793,112870.0,112860.0,0.71302006]
[1754408591201,1.29422793,112870.0,112860.0,0.001]
[1754408591402,1.29422793,112870.0,112860.0,0.64196]
[1754408591603,0.7372262,112870.0,112860.0,0.64196]
[1754408591793,1.29422793,112870.0,112860.0,0.64196]
[1754408592400,1.29422793,112870.0,112860.0,0.64192]
[1754408592600,1.29422793,112870.0,112860.0,0.8191519]
[1754408592804,1.38378793,112870.0,112860.0,0.8414419]
[1754408593506,0.8267862,112870.0,112860.0,0.8674319]
[1754408593706,1.38378793,112870.0,112860.0,0.8674319]
[1754408594806,0.8267862,112870.0,112860.0,0.8674319]
[1754408595007,0.8267862,112870.0,112860.0,0.93768082]
[1754408596010,1.38378793,112870.0,112860.0,0.73445892]
[1754408596202,1.38378793,112870.0,112860.0,0.71216892]
[1754408597199,1.38378793,112870.0,112860.0,0.88940072]
[1754408597406,1.38378793,112870.0,112860.0,0.71216892]
[1754408597805,1.38378793,112870.0,112860.0,0.88940072]
[1754408598105,1.38378793,112870.0,112860.0,0.71216892]
[1754408598807,1.38378793,112870.0,112860.0,0.07124892]
[1754408599009,1.38378793,112870.0,112860.0,0.71204892]
[1754408599408,1.38378793,112870.0,112860.0,0.64176]
[1754408599808,1.86098793,112870.0,112860.0,0.001]
[1754408600005,0.3714419,112860.0,112850.0,0.6408]
[1754408600313,0.3714733,112840.0,112830.0,1.24346762]
[1754408600608,0.3714733,112840.0,112830.0,1.22564]
[1754408600609,1.65007503,112840.0,112830.0,1.22564]
[1754408600809,0.371489,112830.0,112820.0,0.09832]
[1754408601006,1.28929073,112830.0,112820.0,0.73904]
[1754408601207,1.28929073,112830.0,112820.0,0.06311]
[1754408601414,1.28929073,112830.0,112820.0,0.70383]
[1754408601714,1.28929073,112830.0,112820.0,0.9163347]
[1754408601906,1.28929073,112830.0,112820.0,0.9420547]
[1754408602214,0.732289,112830.0,112820.0,0.9420547]
[1754408602408,0.732289,112830.0,112820.0,0.9440547]
[1754408603011,0.540079,112830.0,112820.0,0.9440547]
[1754408603307,0.697279,112830.0,112820.0,0.9440547]
[1754408603506,0.699279,112830.0,112820.0,0.9440547]
[1754408603707,0.731969,112830.0,112820.0,0.76676]
[1754408603901,0.731969,112830.0,112820.0,0.74004]
[1754408604109,1.28897073,112830.0,112820.0,0.73874]
[1754408604309,1.28897073,112830.0,112820.0,0.9417547]
[1754408604814,0.731969,112830.0,112820.0,0.9417547]
[1754408605205,0.731969,112830.0,112820.0,0.73874]
[1754408605410,1.28897073,112830.0,112820.0,0.64072]
[1754408605603,1.28697073,112830.0,112820.0,0.64072]
[1754408605808,1.28897073,112830.0,112820.0,0.64072]
[1754408606204,1.28697073,112830.0,112820.0,0.64072]
[1754408606403,1.28897073,112830.0,112820.0,0.64072]
[1754408606614,1.28997073,112830.0,112820.0,0.64072]
[1754408606813,1.28797073,112830.0,112820.0,0.64072]
[1754408607015,1.28997073,112830.0,112820.0,0.64072]
[1754408608416,1.28997073,112830.0,112820.0,0.8180147]
[1754408609216,1.28997073,112830.0,112820.0,0.64072]
[1754408609417,1.28997073,112830.0,112820.0,0.8180147]
[1754408609918,1.28997073,112830.0,112820.0,0.64072]
[1754408610218,1.28997073,112830.0,112820.0,0.8180147]
[1754408610414,1.28997073,112830.0,112800.0,0.08071811]
[1754408610415,0.3365104,112810.0,112800.0,0.08071811]
[1754408610718,1.64780213,112810.0,112800.0,0.80932924]
[1754408610919,1.64780213,112810.0,112800.0,0.71230924]
[1754408611716,1.64780213,112810.0,112800.0,0.71430924]
[1754408612220,1.0908004,112810.0,112800.0,0.71230924]
[1754408612419,1.64880213,112810.0,112800.0,0.71230924]
[1754408612717,1.64880213,112810.0,112800.0,0.88963534]
[1754408612910,1.64880213,112810.0,112800.0,0.8179661]
[1754408613219,0.9764304,112810.0,112800.0,0.94947424]
[1754408613414,0.9335504,112810.0,112800.0,0.94947424]
[1754408613611,1.0091204,112810.0,112800.0,4e-05]
[1754408613810,1.0091204,112810.0,112780.0,0.3608]
[1754408613811,0.3692319,112790.0,112780.0,0.09702]
[1754408614116,1.64783363,112790.0,112780.0,0.73762]
[1754408614314,1.64783363,112790.0,112780.0,0.80795878]
[1754408614718,1.0908319,112790.0,112780.0,0.80795878]
[1754408614914,1.64783363,112790.0,112780.0,0.80795878]
[1754408615115,1.64783363,112790.0,112780.0,0.80895878]
[1754408615518,1.64783363,112790.0,112780.0,0.80899878]
[1754408616019,1.64783363,112790.0,112780.0,0.16835878]
[1754408616318,0.6473519,112790.0,112780.0,1.01207638]
[1754408616508,0.002,112790.0,112780.0,2.22987811]
[1754408616714,0.5341388,112810.0,112800.0,0.2339661]
[1754408616715,0.7359916,112810.0,112800.0,0.2339661]
[1754408616913,0.6584202,112810.0,112800.0,0.9386661]
[1754408617615,0.6584202,112810.0,112800.0,0.76134]
[1754408617817,0.7678002,112810.0,112800.0,0.76134]
[1754408618016,1.37767193,112810.0,112800.0,0.73762]
[1754408618315,1.37767193,112810.0,112800.0,0.6406]
[1754408618616,1.37767193,112810.0,112800.0,0.68098]
[1754408618808,1.37967193,112810.0,112800.0,0.71694]
[1754408619015,1.37967193,112810.0,112800.0,0.73862]
[1754408619321,1.37767193,112810.0,112800.0,0.6426]
[1754408619518,1.37667193,112810.0,112800.0,0.6426]
[1754408619723,1.44675193,112810.0,112800.0,0.68298]
[1754408620114,1.44775193,112810.0,112800.0,0.68498]
[1754408620317,1.44775193,112810.0,112800.0,0.8623062]
[1754408620515,0.8907502,112810.0,112800.0,0.9426662]
[1754408620714,0.7532002,112810.0,112800.0,0.9406662]
[1754408620921,0.708869,112810.0,112800.0,0.9406662]
[1754408621519,0.707869,112810.0,112800.0,0.9416662]
[1754408621716,0.43188,112810.0,112800.0,0.9416662]
[1754408621915,0.6091904,112810.0,112800.0,1.49866793]
[1754408622117,0.6081904,112810.0,112800.0,0.9396662]
[1754408622323,0.6101904,112810.0,112800.0,0.9416662]
[1754408622826,0.5717504,112810.0,112800.0,0.9416662]
[1754408623619,0.002,112810.0,112800.0,1.79866793]
[1754408623827,0.002,112810.0,112800.0,2.15946793]
[1754408625718,0.002,112810.0,112800.0,1.6024662]
[1754408625929,0.002,112810.0,112800.0,2.5286662]
[1754408628033,0.03364,112810.0,112800.0,2.5286262]
[1754408628720,0.002,112810.0,112800.0,2.5286262]
[1754408630633,0.002,112810.0,112800.0,1.8880662]
[1754408630832,0.002,112810.0,112800.0,2.5285862]
[1754408631431,0.03236,112810.0,112800.0,2.5285862]
[1754408631734,0.002,112810.0,112800.0,2.5285862]
[1754408634626,0.002,112810.0,112800.0,3.08558793]
[1754408635232,0.002,112810.0,112800.0,2.5285862]